fUSD/lending_fUSD_20250209
["ID","MTS","AMOUNT","RATE_DAILY","PERIOD"]
[352421141,1739093437660,-500.0,0.00010403,2]
[352421142,1739093437670,-500.0,0.00010403,2]
[352421143,1739093437679,-500.0,0.00010403,2]
[352421144,1739093437688,-500.0,0.00010403,2]
[352421145,1739093437697,-500.0,0.00010403,2]
[352421146,1739093437706,-500.0,0.00010403,2]
[352421147,1739093437715,-500.0,0.00010403,2]
[352421148,1739093437724,-151.77621427,0.00010403,2]
[352421149,1739093437733,-500.0,0.00010403,2]
[352421150,1739093437742,-407.37228345,0.00010403,2]
[352421151,1739093437751,-296.75561329,0.00010403,2]
[352421152,1739093437761,-500.0,0.00010403,2]
[352421153,1739093437770,-523.2131,0.00010403,2]
[352421154,1739093437780,-500.0,0.00010403,2]
[352421155,1739093437790,-500.0,0.00010403,2]
[352421156,1739093437799,-500.0,0.00010403,2]
[352421157,1739093437809,-500.0,0.00010403,2]
[352421158,1739093437818,-500.0,0.00010404,2]
[352421159,1739093437827,-500.0,0.00010404,2]
[352421160,1739093437836,-500.0,0.00010404,2]
[352421161,1739093437846,-500.0,0.00010404,2]
[352421162,1739093437855,-500.0,0.00010404,2]
[352421163,1739093437864,-500.0,0.00010404,2]
[352421164,1739093437874,-378.66,0.00010404,2]
[352421165,1739093437885,-500.0,0.00010404,2]
[352421166,1739093437894,-500.0,0.00010404,2]
[352421167,1739093437904,-500.0,0.00010404,2]
[352421168,1739093437913,-500.0,0.00010404,2]
[352421169,1739093437923,-500.0,0.00010404,2]
[352421170,1739093437932,-500.0,0.00010404,2]
[352421171,1739093437942,-500.0,0.00010404,2]
[352421172,1739093437951,-500.0,0.00010404,2]
[352421173,1739093437961,-500.0,0.00010404,2]
[352421174,1739093437970,-500.0,0.00010404,2]
[352421175,1739093437979,-751.66,0.00010404,2]
[352421176,1739093437988,-545.98,0.00010404,2]
[352421177,1739093437998,-793.75,0.00010404,2]
[352421178,1739093438007,-912.09,0.00010404,2]
[352421179,1739093438016,-500.0,0.00010404,2]
[352421180,1739093438025,-552.76,0.00010404,2]
[352421181,1739093438034,-573.7,0.00010404,2]
[352421182,1739093438045,-500.0,0.00010404,2]
[352421183,1739093438055,-514.55,0.00010404,2]
[352421184,1739093438065,-500.0,0.00010404,2]
[352421185,1739093438074,-650.03,0.00010404,2]
[352421186,1739093438084,-159.30899163,0.00010405,2]
[352421187,1739093438094,-500.0,0.00010405,2]
[352421188,1739093438103,-500.0,0.00010405,2]
[352421189,1739093438117,-634.94,0.00010405,2]
[352421190,1739093438127,-500.0,0.00010405,2]
[352421191,1739093438136,-500.0,0.00010405,2]
[352421192,1739093438146,-794.88,0.00010405,2]
[352421193,1739093438156,-570.37,0.0001041,2]
[352421194,1739093438165,-623.94,0.00010538,2]
[352421195,1739093438175,-500.0,0.00010538,2]
[352421196,1739093438187,-500.0,0.00010538,2]
[352421197,1739093438196,-500.0,0.00010538,2]
[352421198,1739093438206,-500.0,0.00010538,2]
[352421199,1739093438215,-500.0,0.00010538,2]
[352421200,1739093438225,-669.84,0.00010538,2]
[352421201,1739093438234,-748.14,0.00010538,2]
[352421202,1739093438244,-500.0,0.00010538,2]
[352421203,1739093438254,-500.0,0.00010538,2]
[352421204,1739093438263,-500.0,0.00010538,2]
[352421205,1739093438273,-500.0,0.00010538,2]
[352421206,1739093438284,-500.0,0.00010538,2]
[352421207,1739093438295,-500.0,0.00010538,2]
[352421208,1739093438306,-762.76,0.00010538,2]
[352421209,1739093438315,-500.0,0.00010538,2]
[352421210,1739093438326,-500.0,0.00010538,2]
[352421211,1739093438336,-576.71,0.00010538,2]
[352421212,1739093438345,-500.0,0.00010538,2]
[352421213,1739093438355,-500.0,0.00010538,2]
[352421214,1739093438365,-500.0,0.00010538,2]
[352421215,1739093438375,-500.0,0.00010538,2]
[352421216,1739093438384,-567.35,0.00010538,2]
[352421217,1739093438394,-673.22,0.00010538,2]
[352421218,1739093438404,-238.063774,0.00010538,2]
[352421219,1739093438413,-500.0,0.00010538,2]
[352421220,1739093438423,-612.38,0.00010538,2]
[352421221,1739093438432,-500.0,0.00010538,2]
[352421222,1739093438442,-500.0,0.00010538,2]
[352421223,1739093438451,-764.53,0.00010538,2]
[352421224,1739093438461,-500.0,0.00010538,2]
[352421225,1739093438470,-500.0,0.00010538,2]
[352421226,1739093438480,-179.542554,0.00010538,2]
[352421227,1739093438489,-598.52,0.00010538,2]
[352421228,1739093438499,-386.98310744,0.00010538,2]
[352421229,1739093438508,-790.4,0.00010538,2]
[352421230,1739093438518,-500.0,0.00010538,2]
[352421231,1739093438527,-500.0,0.00010538,2]
[352421232,1739093438537,-799.74,0.00010538,2]
[352421233,1739093438547,-560.95,0.00010538,2]
[352421234,1739093438556,-500.0,0.00010538,2]
[352421235,1739093438566,-700.59,0.00010538,2]
[352421236,1739093438575,-500.0,0.00010538,2]
[352421237,1739093438584,-500.0,0.00010538,2]
[352421238,1739093438594,-500.0,0.00010538,2]
[352421239,1739093438603,-1061.78,0.00010538,2]
[352421240,1739093438613,-884.41,0.00010538,2]
[352421241,1739093438622,-549.77,0.00010538,2]
[352421242,1739093438631,-500.0,0.00010538,2]
[352421243,1739093438641,-769.49,0.00010538,2]
[352421244,1739093438650,-619.63,0.00010538,2]
[352421245,1739093438660,-269.71024044,0.00010538,2]
[352421246,1739093438669,-693.66,0.00010538,2]
[352421247,1739093438679,-629.58,0.00010538,2]
[352421248,1739093438688,-507.27078071,0.00010538,2]
[352421249,1739093438698,-823.3,0.00010538,2]
[352421250,1739093438707,-186.28699947,0.00010538,2]
[352421251,1739093438716,-821.47,0.00010538,2]
[352421252,1739093438726,-541.07278664,0.00010538,2]
[352421253,1739093438735,-500.0,0.00010538,2]
[352421254,1739093438745,-708.97,0.00010538,2]
[352421255,1739093438754,-757.96,0.00010538,2]
[352421256,1739093438763,-1087.29,0.00010538,2]
[352421257,1739093438772,-500.0,0.00010538,2]
[352421258,1739093438782,-1753.75,0.00010538,2]
[352421259,1739093438791,-1730.61,0.00010538,2]
[352421260,1739093438800,-500.0,0.00010538,2]
[352421261,1739093438811,-500.0,0.00010538,2]
[352421262,1739093438821,-848.88,0.00010538,2]
[352421263,1739093438830,-1029.87,0.00010538,2]
[352421264,1739093438839,-547.81,0.00010538,2]
[352421265,1739093438849,-764.93,0.00010538,2]
[352421266,1739093438858,-783.68,0.00010538,2]
[352421267,1739093438867,-1197.8,0.00010538,2]
[352421268,1739093438877,-633.47,0.00010538,2]
[352421269,1739093438887,-1331.84,0.00010538,2]
[352421270,1739093438896,-585.06,0.00010538,2]
[352421271,1739093438906,-500.0,0.00010538,2]
[352421272,1739093438915,-918.48,0.00010538,2]
[352421273,1739093438924,-797.81,0.00010538,2]
[352421274,1739093438934,-500.0,0.00010538,2]
[352421275,1739093438943,-500.0,0.00010538,2]
[352421276,1739093438953,-502.85700997,0.00010538,2]
[352421277,1739093438963,-1135.51,0.00010538,2]
[352421278,1739093438972,-500.0,0.00010538,2]
[352421279,1739093438982,-500.0,0.00010538,2]
[352421280,1739093438991,-1781.88,0.00010538,2]
[352421281,1739093439001,-1130.28,0.00010538,2]
[352421282,1739093439010,-500.0,0.00010538,2]
[352421283,1739093439020,-500.0,0.00010538,2]
[352421284,1739093439030,-2486.97,0.00010538,2]
[352421285,1739093439040,-1439.82,0.00010538,2]
[352421286,1739093439050,-1176.89,0.00010538,2]
[352421287,1739093439059,-1603.9,0.00010538,2]
[352421288,1739093439068,-1308.98,0.00010538,2]
[352421289,1739093439078,-1740.19,0.00010538,2]
[352421290,1739093439088,-809.09,0.00010538,2]
[352421291,1739093439097,-540.18,0.00010538,2]
[352421292,1739093439108,-503.14,0.00010538,2]
[352421293,1739093439120,-3818.74,0.00010538,2]
[352421294,1739093439130,-744.75,0.00010538,2]
[352421295,1739093439140,-950.81,0.00010538,2]
[352421296,1739093439150,-500.0,0.00010538,2]
[352421297,1739093439160,-500.0,0.00010538,2]
[352421298,1739093439170,-1366.19,0.00010538,2]
[352421299,1739093439180,-899.22,0.00010538,2]
[352421300,1739093439192,-1133.86,0.00010538,2]
[352421301,1739093439201,-675.02,0.00010538,2]
[352421302,1739093439211,-622.79,0.00010538,2]
[352421303,1739093439220,-500.0,0.00010538,2]
[352421304,1739093439230,-666.01,0.00010538,2]
[352421305,1739093439415,-1003.73,0.00010538,2]
[352421306,1739093439425,-1173.28,0.00010538,2]
[352421307,1739093439435,-2140.7,0.00010538,2]
[352421308,1739093439445,-500.0,0.00010538,2]
[352421309,1739093439454,-804.39,0.00010538,2]
[352421310,1739093439464,-699.86,0.00010538,2]
[352421311,1739093439474,-1038.03,0.00010538,2]
[352421312,1739093439484,-1534.57,0.00010538,2]
[352421313,1739093439494,-517.7397752,0.00010538,2]
[352421315,1739093439503,-1789.5,0.00010538,2]
[352421316,1739093439513,-739.77,0.00010538,2]
[352421317,1739093439522,-2875.24,0.00010538,2]
[352421318,1739093439532,-1312.87,0.00010538,2]
[352421319,1739093439543,-1362.18,0.00010538,2]
[352421321,1739093439552,-1008.52,0.00010538,2]
[352421323,1739093439561,-500.0,0.00010538,2]
[352421324,1739093439571,-1651.8,0.00010538,2]
[352421325,1739093439580,-458.6,0.00010538,2]
[352421326,1739093439590,-500.0,0.00010538,2]
[352421327,1739093439599,-532.11,0.00010538,2]
[352421328,1739093439608,-1345.09,0.00010538,2]
[352421329,1739093439618,-1772.27,0.00010538,2]
[352421330,1739093439627,-1375.84,0.00010538,2]
[352421331,1739093439637,-1273.43,0.00010538,2]
[352421332,1739093439646,-500.0,0.00010538,2]
[352421333,1739093439655,-906.11,0.00010538,2]
[352421334,1739093439664,-500.0,0.00010538,2]
[352421335,1739093439675,-1298.96,0.00010538,2]
[352421336,1739093439684,-1374.21,0.00010538,2]
[352421337,1739093439694,-822.1,0.00010538,2]
[352421338,1739093439704,-578.75,0.00010538,2]
[352421339,1739093439714,-500.0,0.00010538,2]
[352421340,1739093439723,-1313.23,0.00010538,2]
[352421341,1739093439733,-544.38,0.00010538,2]
[352421342,1739093439742,-1324.54,0.00010538,2]
[352421343,1739093439752,-500.0,0.00010538,2]
[352421344,1739093439761,-1005.87,0.00010538,2]
[352421345,1739093439771,-1381.83,0.00010538,2]
[352421346,1739093439780,-1250.43,0.00010538,2]
[352421347,1739093439791,-514.48,0.00010538,2]
[352421348,1739093439800,-500.0,0.00010538,2]
[352421349,1739093439809,-963.73,0.00010538,2]
[352421350,1739093439819,-911.74,0.00010538,2]
[352421351,1739093439828,-1092.4,0.00010538,2]
[352421352,1739093439838,-500.0,0.00010538,2]
[352421353,1739093439848,-940.48,0.00010538,2]
[352421354,1739093439857,-500.0,0.00010538,2]
[352421355,1739093439867,-953.19,0.00010538,2]
[352421356,1739093439876,-500.0,0.00010538,2]
[352421357,1739093439886,-500.0,0.00010538,2]
[352421358,1739093439896,-917.38,0.00010538,2]
[352421359,1739093439906,-431.35,0.00010538,2]
[352421360,1739093439916,-872.02,0.00010538,2]
[352421361,1739093439926,-540.05,0.00010538,2]
[352421362,1739093439936,-500.0,0.00010538,2]
[352421363,1739093439946,-741.57,0.00010538,2]
[352421364,1739093439956,-500.0,0.00010538,2]
[352421365,1739093439965,-995.48,0.00010538,2]
[352421366,1739093439975,-500.0,0.00010538,2]
[352421367,1739093439984,-1374.19,0.00010538,2]
[352421368,1739093439993,-944.21,0.00010538,2]
[352421369,1739093440003,-500.0,0.00010538,2]
[352421370,1739093440014,-1806.32,0.00010538,2]
[352421371,1739093440024,-500.0,0.00010538,2]
[352421372,1739093440034,-500.0,0.00010538,2]
[352421373,1739093440046,-945.42,0.00010538,2]
[352421374,1739093440056,-500.0,0.00010539,2]
[352421375,1739093440067,-500.0,0.00010539,2]
[352421376,1739093440077,-500.0,0.00010539,2]
[352421377,1739093440087,-254.01806846,0.00010539,2]
[352421378,1739093440097,-500.0,0.00010539,2]
[352421379,1739093440112,-500.0,0.00010539,2]
[352421380,1739093440122,-500.0,0.00010539,2]
[352421381,1739093440132,-500.0,0.00010539,2]
[352421382,1739093440141,-500.0,0.00010539,2]
[352421383,1739093440151,-500.0,0.00010539,2]
[352421384,1739093440160,-500.0,0.00010539,2]
[352421385,1739093440170,-219.88973283,0.00010539,2]
[352421386,1739093440180,-500.0,0.00010539,2]
[352421387,1739093440191,-500.0,0.00010539,2]
[352421388,1739093440201,-500.0,0.00010539,2]
[352421389,1739093440210,-500.0,0.00010539,2]
[352421390,1739093440220,-500.0,0.00010539,2]
[352421391,1739093440230,-500.0,0.00010539,2]
[352421392,1739093440239,-500.0,0.00010539,2]
[352421393,1739093440248,-500.0,0.00010539,2]
[352421394,1739093440258,-530.4559355,0.00010539,2]
[352421395,1739093440268,-500.0,0.00010539,2]
[352421396,1739093440279,-500.0,0.00010539,2]
[352421397,1739093440289,-500.0,0.00010539,2]
[352421398,1739093440299,-500.0,0.00010539,2]
[352421399,1739093440309,-500.0,0.00010539,2]
[352421400,1739093440318,-500.0,0.00010539,2]
[352421401,1739093440328,-500.0,0.00010539,2]
[352421402,1739093440338,-500.0,0.00010539,2]
[352421403,1739093440349,-500.0,0.00010539,2]
[352421404,1739093440359,-500.0,0.00010539,2]
[352421405,1739093440368,-500.0,0.00010539,2]
[352421406,1739093440378,-500.0,0.00010539,2]
[352421407,1739093440387,-500.0,0.00010539,2]
[352421408,1739093440397,-578.70506836,0.00010539,2]
[352421409,1739093440407,-562.61437866,0.00010539,2]
[352421410,1739093440416,-500.0,0.00010539,2]
[352421411,1739093440425,-500.0,0.00010539,2]
[352421412,1739093440435,-500.0,0.00010539,2]
[352421413,1739093440444,-500.0,0.00010539,2]
[352421414,1739093440454,-507.71320417,0.00010539,2]
[352421415,1739093440463,-500.0,0.00010539,2]
[352421416,1739093440472,-500.0,0.00010539,2]
[352421417,1739093440482,-500.0,0.00010539,2]
[352421418,1739093440492,-500.0,0.00010539,2]
[352421419,1739093440501,-500.0,0.00010539,2]
[352421420,1739093440510,-500.0,0.00010539,2]
[352421421,1739093440519,-631.16,0.00010539,2]
[352421422,1739093440529,-500.0,0.00010539,2]
[352421423,1739093440539,-568.57970671,0.00010539,2]
[352421424,1739093440548,-500.0,0.00010539,2]
[352421425,1739093440558,-500.0,0.00010539,2]
[352421426,1739093440567,-500.0,0.00010539,2]
[352421427,1739093440576,-546.25,0.00010539,2]
[352421428,1739093440586,-500.0,0.00010539,2]
[352421429,1739093440595,-500.0,0.00010539,2]
[352421430,1739093440604,-430.32793144,0.00010539,2]
[352421431,1739093440614,-903.92,0.00010539,2]
[352421432,1739093440624,-826.73,0.00010539,2]
[352421433,1739093440633,-500.0,0.00010539,2]
[352421434,1739093440643,-500.0,0.00010539,2]
[352421435,1739093440653,-500.0,0.00010539,2]
[352421436,1739093440662,-500.0,0.00010539,2]
[352421437,1739093440671,-425.33195148,0.00010539,2]
[352421438,1739093440680,-577.09,0.00010539,2]
[352421439,1739093440690,-500.0,0.00010539,2]
[352421440,1739093440700,-500.0,0.00010539,2]
[352421441,1739093440709,-898.01,0.00010539,2]
[352421442,1739093440719,-500.0,0.00010539,2]
[352421443,1739093440728,-500.0,0.00010539,2]
[352421444,1739093440738,-500.0,0.00010539,2]
[352421445,1739093440747,-500.0,0.00010539,2]
[352421446,1739093440757,-500.0,0.00010539,2]
[352421447,1739093440767,-500.0,0.00010539,2]
[352421448,1739093440778,-617.53,0.00010539,2]
[352421449,1739093440788,-332.96,0.00010539,2]
[352421450,1739093440798,-500.0,0.00010539,2]
[352421451,1739093440808,-500.0,0.00010539,2]
[352421452,1739093440818,-500.0,0.00010539,2]
[352421453,1739093440828,-563.32,0.00010539,2]
[352421454,1739093440837,-500.0,0.00010539,2]
[352421455,1739093440847,-500.0,0.00010539,2]
[352421456,1739093440856,-500.0,0.00010539,2]
[352421457,1739093440866,-500.0,0.00010539,2]
[352421458,1739093440875,-500.0,0.00010539,2]
[352421459,1739093440885,-550.73,0.00010539,2]
[352421460,1739093440900,-500.0,0.00010539,2]
[352421461,1739093440910,-500.0,0.00010539,2]
[352421462,1739093440920,-500.0,0.00010539,2]
[352421463,1739093440930,-500.0,0.00010539,2]
[352421464,1739093440940,-500.0,0.00010539,2]
[352421465,1739093440950,-500.0,0.00010539,2]
[352421466,1739093440960,-500.0,0.00010539,2]
[352421467,1739093440971,-500.0,0.00010539,2]
[352421468,1739093440980,-289.79254699,0.00010539,2]
[352421469,1739093440990,-500.0,0.00010539,2]
[352421470,1739093441000,-500.0,0.00010539,2]
[352421471,1739093441010,-616.48,0.00010539,2]
[352421472,1739093441020,-871.06,0.00010539,2]
[352421473,1739093441030,-500.0,0.00010539,2]
[352421474,1739093441040,-500.0,0.00010539,2]
[352421475,1739093441050,-500.0,0.00010539,2]
[352421476,1739093441060,-500.0,0.00010539,2]
[352421477,1739093441070,-500.0,0.00010539,2]
[352421478,1739093441080,-607.62,0.00010539,2]
[352421479,1739093441090,-500.0,0.00010539,2]
[352421480,1739093441100,-500.0,0.00010539,2]
[352421481,1739093441112,-851.92,0.00010539,2]
[352421482,1739093441122,-500.0,0.00010539,2]
[352421483,1739093441132,-620.63,0.00010539,2]
[352421484,1739093441142,-500.0,0.00010539,2]
[352421485,1739093441153,-500.0,0.00010539,2]
[352421486,1739093441163,-500.0,0.00010539,2]
[352421487,1739093441173,-906.54,0.00010539,2]
[352421488,1739093441184,-527.5,0.00010539,2]
[352421489,1739093441194,-616.79,0.00010539,2]
[352421490,1739093441205,-500.0,0.00010539,2]
[352421491,1739093441215,-1351.22,0.00010539,2]
[352421492,1739093441226,-793.34,0.00010539,2]
[352421493,1739093441236,-500.0,0.00010539,2]
[352421494,1739093441248,-500.0,0.00010539,2]
[352421495,1739093441258,-500.0,0.00010539,2]
[352421496,1739093441268,-500.0,0.00010539,2]
[352421497,1739093441278,-500.0,0.00010539,2]
[352421498,1739093441288,-925.01,0.00010539,2]
[352421499,1739093441299,-500.0,0.00010539,2]
[352421500,1739093441308,-500.0,0.00010539,2]
[352421501,1739093441318,-500.0,0.00010539,2]
[352421502,1739093441328,-500.0,0.00010539,2]
[352421503,1739093441337,-500.0,0.00010539,2]
[352421504,1739093441347,-1614.31,0.00010539,2]
[352421505,1739093441357,-500.0,0.00010539,2]
[352421506,1739093441366,-1427.42,0.00010539,2]
[352421507,1739093441376,-1728.39,0.00010539,2]
[352421508,1739093441386,-500.0,0.00010539,2]
[352421509,1739093441395,-500.0,0.00010539,2]
[352421510,1739093441405,-1702.8,0.00010539,2]
[352421511,1739093441416,-500.0,0.00010539,2]
[352421512,1739093441426,-610.08,0.00010539,2]
[352421513,1739093441437,-500.0,0.00010539,2]
[352421514,1739093441447,-2941.1,0.00010539,2]
[352421515,1739093441458,-500.0,0.00010539,2]
[352421516,1739093441468,-621.84,0.00010539,2]
[352421517,1739093441478,-500.0,0.00010539,2]
[352421518,1739093441487,-1381.55,0.00010539,2]
[352421519,1739093441497,-500.0,0.00010539,2]
[352421520,1739093441507,-500.0,0.00010539,2]
[352421521,1739093441516,-1411.04,0.00010539,2]
[352421522,1739093441527,-500.0,0.00010539,2]
[352421523,1739093441542,-500.0,0.00010539,2]
[352421524,1739093441556,-729.26,0.00010539,2]
[352421525,1739093441566,-500.0,0.00010539,2]
[352421526,1739093441575,-1399.99,0.00010539,2]
[352421527,1739093441587,-408.12,0.00010539,2]
[352421528,1739093441597,-500.0,0.00010539,2]
[352421529,1739093441606,-500.0,0.00010539,2]
[352421530,1739093441618,-500.0,0.00010539,2]
[352421531,1739093441627,-1974.4,0.00010539,2]
[352421532,1739093441637,-500.0,0.00010539,2]
[352421533,1739093441646,-1138.28,0.00010539,2]
[352421534,1739093441656,-736.97,0.00010539,2]
[352421535,1739093441666,-1606.06,0.00010539,2]
[352421536,1739093441675,-500.0,0.00010539,2]
[352421537,1739093441684,-500.0,0.00010539,2]
[352421538,1739093441694,-500.0,0.00010539,2]
[352421539,1739093441703,-1655.64,0.00010539,2]
[352421540,1739093441713,-500.0,0.00010539,2]
[352421541,1739093441722,-904.17,0.00010539,2]
[352421542,1739093441732,-175.13522644,0.00010539,2]
[352421543,1739093441741,-1000.0,0.00010539,2]
[352421544,1739093441751,-500.0,0.00010539,2]
[352421545,1739093441762,-500.0,0.00010539,2]
[352421546,1739093441772,-500.0,0.00010539,2]
[352421547,1739093441781,-1467.63,0.00010539,2]
[352421548,1739093441792,-1058.84,0.00010539,2]
[352421549,1739093441802,-500.0,0.00010539,2]
[352421550,1739093441811,-500.0,0.00010539,2]
[352421551,1739093441821,-1247.5,0.00010539,2]
[352421552,1739093441831,-500.0,0.00010539,2]
[352421553,1739093441840,-500.0,0.00010539,2]
[352421554,1739093441851,-554.62,0.00010539,2]
[352421555,1739093441861,-500.0,0.00010539,2]
[352421556,1739093441942,-500.0,0.00010539,2]
[352421557,1739093441951,-500.0,0.00010539,2]
[352421558,1739093441961,-500.0,0.00010539,2]
[352421559,1739093441970,-500.0,0.0001054,2]
[352421560,1739093441979,-500.0,0.0001054,2]
[352421561,1739093441989,-500.0,0.00010541,2]
[352421562,1739093441998,-500.0,0.00010541,2]
[352421563,1739093442007,-169.65,0.00010541,2]
[352421564,1739093442016,-500.0,0.00010541,2]
[352421565,1739093442026,-224.10035733,0.00010541,2]
[352421566,1739093442035,-500.0,0.00010541,2]
[352421567,1739093442047,-500.0,0.00010541,2]
[352421568,1739093442056,-500.0,0.00010541,2]
[352421569,1739093442065,-500.0,0.00010541,2]
[352421570,1739093442075,-500.0,0.00010541,2]
[352421571,1739093442084,-500.0,0.00010541,2]
[352421572,1739093442094,-500.0,0.00010541,2]
[352421573,1739093442103,-500.0,0.00010541,2]
[352421574,1739093442117,-500.0,0.00010541,2]
[352421575,1739093442127,-500.0,0.00010541,2]
[352421576,1739093442135,-500.0,0.00010541,2]
[352421577,1739093442145,-751.66,0.00010541,2]
[352421578,1739093442154,-545.98,0.00010541,2]
[352421579,1739093442164,-793.75,0.00010541,2]
[352421580,1739093442173,-912.09,0.00010541,2]
[352421581,1739093442184,-500.0,0.00010541,2]
[352421582,1739093442193,-552.76,0.00010541,2]
[352421583,1739093442202,-573.7,0.00010541,2]
[352421584,1739093442211,-500.0,0.00010541,2]
[352421585,1739093442220,-514.55,0.00010541,2]
[352421586,1739093442229,-500.0,0.00010541,2]
[352421587,1739093442238,-650.03,0.00010541,2]
[352421588,1739093442248,-379.86,0.00010541,2]
[352421589,1739093442258,-500.0,0.00010542,2]
[352421590,1739093442267,-500.0,0.00010542,2]
[352421591,1739093442278,-634.94,0.00010542,2]
[352421592,1739093442287,-500.0,0.00010542,2]
[352421593,1739093442298,-500.0,0.00010542,2]
[352421594,1739093442307,-794.88,0.00010542,2]
[352421595,1739093442317,-152.74,0.00010631,2]
[352421596,1739093442327,-151.5,0.00010631,2]
[352421597,1739093442338,-151.46,0.00010631,2]
[352421598,1739093442347,-151.62,0.00010631,2]
[352421599,1739093442356,-173.22,0.00010653,2]
[352421600,1739093442366,-623.94,0.00010675,2]
[352421601,1739093442376,-500.0,0.00010675,2]
[352421602,1739093442386,-582.1231788,0.00010675,2]
[352421603,1739093442396,-500.0,0.00010675,2]
[352421604,1739093442406,-320.2,0.00010675,2]
[352421605,1739093442417,-500.0,0.00010675,2]
[352421606,1739093442429,-669.84,0.00010675,2]
[352421607,1739093442439,-748.14,0.00010675,2]
[352421608,1739093442448,-500.0,0.00010675,2]
[352421609,1739093442458,-500.0,0.00010675,2]
[352421610,1739093442468,-500.0,0.00010675,2]
[352421611,1739093442477,-500.0,0.00010675,2]
[352421612,1739093442487,-500.0,0.00010675,2]
[352421613,1739093442496,-500.0,0.00010675,2]
[352421615,1739093442505,-762.76,0.00010675,2]
[352421616,1739093442515,-500.0,0.00010675,2]
[352421618,1739093442524,-500.0,0.00010675,2]
[352421620,1739093442534,-576.71,0.00010675,2]
[352421622,1739093442544,-500.0,0.00010675,2]
[352421624,1739093442554,-500.0,0.00010675,2]
[352421625,1739093442563,-500.0,0.00010675,2]
[352421627,1739093442572,-500.0,0.00010675,2]
[352421628,1739093442582,-673.22,0.00010675,2]
[352421629,1739093442592,-238.063774,0.00010675,2]
[352421630,1739093442601,-500.0,0.00010675,2]
[352421631,1739093442610,-500.0,0.00010675,2]
[352421632,1739093442619,-500.0,0.00010675,2]
[352421633,1739093442628,-764.53,0.00010675,2]
[352421634,1739093442637,-500.0,0.00010675,2]
[352421635,1739093442646,-500.0,0.00010675,2]
[352421636,1739093442656,-179.542554,0.00010675,2]
[352421637,1739093442666,-598.52,0.00010675,2]
[352421638,1739093442675,-790.4,0.00010675,2]
[352421639,1739093442685,-500.0,0.00010675,2]
[352421640,1739093442694,-500.0,0.00010675,2]
[352421641,1739093442704,-799.74,0.00010675,2]
[352421642,1739093442712,-560.95,0.00010675,2]
[352421643,1739093442722,-500.0,0.00010675,2]
[352421644,1739093442731,-700.59,0.00010675,2]
[352421645,1739093442740,-500.0,0.00010675,2]
[352421646,1739093442749,-500.0,0.00010675,2]
[352421647,1739093442759,-1061.78,0.00010675,2]
[352421648,1739093442768,-884.41,0.00010675,2]
[352421649,1739093442777,-549.77,0.00010675,2]